bitfinex/quotes_SOLUSD_20250130
["timestamp","ask_amount","ask_price","bid_price","bid_amount"]
[1738225458467,43.29726475,239.59,239.53,8.02873716]
[1738225458668,29.88541622,239.59,239.53,8.02873716]
[1738225459069,37.91415338,239.59,239.51,8.02873716]
[1738225460184,8.02873716,239.59,239.51,8.02873716]
[1738225460353,21.44058569,239.61,239.51,8.02873716]
[1738225460554,12.55033527,239.6,239.52,12.55033527]
[1738225462495,12.55033527,239.62,239.54,12.55033527]
[1738225462671,0.03,239.65,239.58,12.55033527]
[1738225463183,13.44184853,239.65,239.58,12.55033527]
[1738225464782,12.55033527,239.64,239.56,12.55033527]
[1738225465693,12.55033527,239.6,239.54,0.063]
[1738225465984,12.55033527,239.58,239.54,0.063]
[1738225466498,12.55033527,239.56,239.54,0.063]
[1738225466999,16.72463527,239.56,239.54,0.063]
[1738225467177,14.03770736,239.55,239.54,0.063]
[1738225467379,13.41184853,239.55,239.54,0.063]
[1738225467709,12.55033527,239.56,239.54,0.063]
[1738225469385,16.72463527,239.56,239.54,0.063]
[1738225469578,14.03770736,239.55,239.54,0.063]
[1738225469781,14.16319736,239.55,239.54,0.063]
[1738225470173,13.41184853,239.55,239.54,0.063]
[1738225471195,17.58624853,239.55,239.54,0.063]
[1738225471570,12.55033527,239.56,239.54,0.063]
[1738225471771,12.55033527,239.58,239.54,0.063]
[1738225472097,13.41184853,239.57,239.54,0.063]
[1738225472599,12.55033527,239.56,239.54,0.063]
[1738225473306,12.550336,239.61,239.54,0.063]
[1738225473307,12.58033527,239.65,239.54,12.61333527]
[1738225473474,12.58033527,239.65,239.56,12.55033527]
[1738225473868,13.41184853,239.64,239.56,12.55033527]
[1738225475299,0.03,239.65,239.58,12.55033527]
[1738225475693,0.03,239.65,239.6,12.55033527]
[1738225477309,0.03,239.64,239.6,12.55033527]
[1738225479018,0.03,239.64,239.62,12.55033527]
[1738225481523,12.55033527,239.73,239.63,12.55033527]
[1738225481688,12.55033527,239.73,239.69,312.0]
[1738225485115,12.55033527,239.73,239.64,12.55033527]
[1738225487907,11.55033527,239.73,239.64,12.55033527]
[1738225488222,11.55033527,239.73,239.65,312.0]
[1738225488721,12.55033527,239.71,239.62,12.55033527]
[1738225488894,12.55033527,239.71,239.64,12.55033527]
[1738225489221,13.41184853,239.72,239.64,12.55033527]
[1738225490021,13.41184853,239.7,239.64,12.55033527]
[1738225490608,12.82192264,239.72,239.64,8.02446381]
[1738225491806,12.82192264,239.72,239.64,320.02446381]
[1738225494123,13.41184853,239.69,239.62,8.02446381]
[1738225494437,8.02446381,239.68,239.62,8.02446381]
[1738225495529,21.43631234,239.69,239.61,28.02446381]
[1738225496030,8.02446381,239.71,239.63,8.02446381]
[1738225496217,13.41184853,239.7,239.63,8.02446381]
[1738225500261,0.03,239.73,239.69,8.02446381]
[1738225503027,8.68032264,239.73,239.65,8.02446381]
[1738225503510,8.05446381,239.73,239.65,8.02446381]
[1738225505833,0.03,239.73,239.69,8.02446381]
[1738225507918,0.03,239.73,239.67,8.02446381]
[1738225509003,13.41184853,239.72,239.65,8.02446381]
[1738225509211,8.02446381,239.71,239.63,8.08746381]
[1738225513450,0.65585883,239.73,239.63,8.08746381]
[1738225513451,8.02446381,239.69,239.63,0.063]
[1738225515553,8.05446381,239.73,239.65,8.02446381]
[1738225515737,0.65585883,239.73,239.67,8.02446381]
[1738225517533,0.03,239.73,239.71,8.02446381]
[1738225518546,0.03,239.73,239.72,12.53032105]
[1738225519022,0.03,239.73,239.7,12.53032105]
[1738225519446,0.03,239.73,239.72,12.53032105]
[1738225521621,0.03,239.73,239.7,12.53032105]
[1738225522037,0.03,239.73,239.72,12.53032105]
[1738225527959,0.03,239.73,239.63,0.063]
[1738225527960,13.56733853,239.73,239.63,0.063]
[1738225528133,13.41184853,239.67,239.63,0.063]
[1738225528329,12.53032105,239.66,239.63,0.063]
[1738225528961,12.53032105,239.68,239.63,0.063]
[1738225529135,16.70262105,239.68,239.63,0.063]
[1738225529659,13.41184853,239.67,239.63,0.063]
[1738225530251,16.70232105,239.7,239.63,0.063]
[1738225530462,12.53032105,239.7,239.63,0.063]
[1738225530641,4.1716,239.72,239.66,12.53032105]
[1738225531458,13.41184853,239.71,239.66,12.53032105]
[1738225531662,13.41184853,239.71,239.64,12.53032105]
[1738225532160,13.15617988,239.7,239.63,0.063]
[1738225533060,4.172,239.69,239.63,0.063]
[1738225533361,14.03770736,239.68,239.63,0.063]
[1738225533837,13.41184853,239.68,239.63,0.063]
[1738225537563,0.78134883,239.73,239.63,0.063]
[1738225537564,16.70182105,239.72,239.63,0.063]
[1738225538066,13.41184853,239.69,239.63,0.063]
[1738225541057,8.65203133,239.69,239.63,0.063]
[1738225541967,13.41184853,239.66,239.63,0.063]
[1738225542272,17.70913853,239.7,239.63,0.063]
[1738225542273,13.41184853,239.64,239.63,0.063]
[1738225542440,1.5771,239.68,239.63,0.063]
[1738225542640,5.7494,239.68,239.63,0.063]
[1738225543571,13.41184853,239.67,239.63,0.063]
[1738225544770,17.58424853,239.67,239.63,0.063]
[1738225544966,8.0261725,239.69,239.63,0.063]
[1738225544967,8.65203133,239.69,239.63,0.063]
[1738225545157,12.82373133,239.71,239.63,0.063]
[1738225545351,4.79755883,239.71,239.64,8.0261725]
[1738225545854,4.1717,239.71,239.64,8.0261725]
[1738225546065,8.68203133,239.73,239.63,0.063]
[1738225546066,4.2013,239.73,239.66,8.0261725]
[1738225546246,13.41184853,239.72,239.66,8.0261725]
[1738225547745,13.41184853,239.72,239.68,8.0261725]
[1738225548673,13.41184853,239.72,239.68,12.53512257]
[1738225548974,0.03,239.73,239.68,12.53512257]
[1738225550895,13.41184853,239.72,239.66,12.53512257]
[1738225551060,17.58334853,239.72,239.66,12.53512257]
[1738225552076,13.41184853,239.72,239.66,12.53512257]
[1738225552470,0.03,239.73,239.68,12.53512257]
[1738225553485,13.44184853,239.73,239.66,12.53512257]
[1738225554582,4.1715,239.72,239.66,12.53512257]
[1738225560892,17.58474853,239.65,239.63,0.063]
[1738225561068,13.41184853,239.65,239.63,0.063]
[1738225562190,12.53512257,239.66,239.63,0.063]
[1738225562691,13.41184853,239.65,239.63,0.063]
[1738225563070,17.58454853,239.65,239.63,0.063]
[1738225565400,12.53512257,239.68,239.63,0.063]
[1738225565585,14.6997814,239.7,239.63,0.063]
[1738225566104,10.4346,239.72,239.65,12.53512257]
[1738225566607,14.03770736,239.71,239.65,12.53512257]
[1738225567819,13.41184853,239.71,239.65,12.53512257]
[1738225569194,13.41184853,239.71,239.67,12.53512257]
[1738225570319,0.03,239.73,239.67,12.53512257]
[1738225570715,13.44184853,239.73,239.67,8.02318498]
[1738225571713,4.1715,239.72,239.67,8.02318498]
[1738225575704,13.41184853,239.71,239.67,8.02318498]
[1738225577905,17.58364853,239.71,239.65,8.02318498]
[1738225578702,26.23269234,239.71,239.63,8.08618498]
[1738225578903,17.58414853,239.68,239.63,0.063]
[1738225579208,21.43503351,239.66,239.63,0.063]
[1738225579806,13.41184853,239.64,239.63,0.063]
[1738225580712,25.60793351,239.64,239.63,0.063]
[1738225582194,26.10989351,239.64,239.63,0.063]
[1738225582911,26.73575234,239.64,239.63,0.063]
[1738225583110,13.41184853,239.6,239.54,0.063]
[1738225583291,13.41184853,239.56,239.54,0.063]
[1738225584293,0.62585883,239.59,239.54,0.063]
[1738225584497,8.64904381,239.63,239.54,8.08618498]
[1738225584910,13.41184853,239.62,239.54,8.08618498]
[1738225585213,13.41184853,239.6,239.54,8.08618498]
[1738225585411,14.03770736,239.62,239.54,8.08618498]
[1738225585715,18.21100736,239.62,239.54,8.08618498]
[1738225587798,13.41184853,239.6,239.54,8.08618498]
[1738225588211,14.03770736,239.6,239.54,8.08618498]
[1738225588391,13.41184853,239.58,239.54,0.063]
[1738225588588,13.41184853,239.56,239.54,0.063]
[1738225595430,17.58614853,239.56,239.54,0.063]
[1738225595722,22.06089234,239.55,239.54,0.063]
[1738225595903,22.56285234,239.55,239.54,0.063]
[1738225596413,20.50196,239.51,239.4,0.063]
[1738225596632,13.41184853,239.45,239.4,0.063]
[1738225597420,17.58804853,239.45,239.4,0.063]
[1738225598094,8.64904381,239.44,239.4,0.063]
[1738225598496,8.02318498,239.44,239.4,0.063]
[1738225598795,14.03770736,239.45,239.4,0.063]
[1738225599797,8.02318498,239.42,239.4,0.063]
[1738225600006,14.03770736,239.41,239.4,0.063]
[1738225600423,13.41184853,239.41,239.4,0.063]
[1738225602829,12.19968498,239.44,239.4,0.063]
[1738225603010,0.62585883,239.42,239.4,0.063]
[1738225603828,17.58874853,239.41,239.4,0.063]
[1738225604334,18.21460736,239.41,239.4,0.063]
[1738225605737,14.03770736,239.41,239.4,0.063]
[1738225605938,8.64904381,239.48,239.4,8.08618498]
[1738225606231,12.82484381,239.48,239.4,8.08618498]
[1738225607029,4.80165883,239.48,239.42,8.02318498]
[1738225607533,13.41184853,239.47,239.42,8.02318498]
[1738225610541,17.58774853,239.47,239.42,8.02318498]
[1738225610720,17.58774853,239.47,239.4,8.08618498]
[1738225611039,13.41184853,239.45,239.4,8.08618498]
[1738225612830,14.03770736,239.47,239.4,8.08618498]
[1738225613021,13.41184853,239.47,239.44,8.02318498]
[1738225613212,4.80105883,239.51,239.44,8.02318498]
[1738225613414,13.41184853,239.5,239.44,8.02318498]
[1738225613738,13.41184853,239.48,239.44,8.02318498]
[1738225615319,13.41184853,239.48,239.42,8.02318498]
[1738225616035,21.12781883,239.47,239.4,8.08618498]
[1738225616211,21.43503351,239.41,239.4,0.063]
[1738225616519,12.56625716,239.46,239.4,0.063]
[1738225616722,12.56625716,239.48,239.4,12.62925716]
[1738225617039,4.1757,239.49,239.42,12.56625716]
[1738225617238,4.80155883,239.49,239.42,12.56625716]
[1738225617415,13.41184853,239.48,239.42,12.56625716]
[1738225618239,25.97810569,239.46,239.4,0.063]
[1738225618439,13.41184853,239.44,239.4,0.063]
[1738225618749,14.03770736,239.44,239.4,0.063]
[1738225619117,13.41184853,239.44,239.4,0.063]
[1738225621114,17.58824853,239.44,239.4,0.063]
[1738225622042,12.56625716,239.46,239.4,0.063]
[1738225622043,0.62585883,239.46,239.4,12.62925716]
[1738225622245,8.023185,239.52,239.45,12.56625716]
[1738225622542,4.1748,239.53,239.47,12.56625716]
[1738225622724,14.03770736,239.52,239.47,12.56625716]
[1738225623035,14.03770736,239.52,239.4,12.62925716]
[1738225623036,13.41184853,239.5,239.43,12.56625716]
[1738225623214,13.41184853,239.48,239.43,12.56625716]
[1738225623415,12.56625716,239.45,239.4,0.063]
[1738225623646,13.19211599,239.45,239.4,0.063]
[1738225623941,13.41184853,239.42,239.4,0.063]
[1738225624724,17.58864853,239.42,239.4,0.063]
[1738225626146,13.19211599,239.47,239.4,0.063]
[1738225626452,4.175,239.52,239.45,12.56625716]
[1738225626753,4.175,239.52,239.48,12.56625716]
[1738225629030,4.1748,239.54,239.48,12.56625716]
[1738225629224,14.03770736,239.53,239.48,12.56625716]
[1738225630947,4.1749,239.53,239.48,12.56625716]
[1738225631452,4.80075883,239.53,239.48,12.56625716]
[1738225631661,13.41184853,239.52,239.46,12.56625716]
[1738225631973,13.41184853,239.5,239.46,12.56625716]
[1738225633670,13.41184853,239.5,239.44,12.56625716]
[1738225633843,13.41184853,239.5,239.42,12.56625716]
[1738225633844,13.41184853,239.48,239.42,12.56625716]
[1738225635072,13.41184853,239.48,239.44,12.56625716]
[1738225635270,13.41184853,239.53,239.46,12.56625716]
[1738225635569,4.2047,239.54,239.48,12.56625716]
[1738225635986,4.2047,239.54,239.4,32.62925716]
[1738225635987,14.03770736,239.53,239.46,12.56625716]
[1738225636655,13.41184853,239.51,239.46,12.56625716]
[1738225639979,4.1752,239.51,239.46,12.56625716]
[1738225640177,14.03770736,239.5,239.42,12.56625716]
[1738225640386,13.41184853,239.48,239.42,12.56625716]
[1738225640957,14.03770736,239.48,239.42,12.56625716]
[1738225641869,13.41184853,239.46,239.42,12.56625716]
[1738225642869,13.41184853,239.46,239.4,12.62925716]
[1738225643070,14.03770736,239.46,239.4,12.62925716]
[1738225643463,13.41184853,239.44,239.4,0.063]
[1738225643968,14.03770736,239.44,239.4,0.063]
[1738225644170,13.41184853,239.42,239.4,0.063]
[1738225644885,13.41184853,239.43,239.4,0.063]
[1738225645272,0.62585883,239.49,239.41,12.56625716]
[1738225645273,16.74195716,239.48,239.41,12.56625716]
[1738225645578,4.1757,239.48,239.41,12.56625716]
[1738225648087,4.1751,239.51,239.44,12.56625716]
[1738225648389,4.80095883,239.51,239.44,12.56625716]
[1738225649971,4.1755,239.49,239.42,12.56625716]
[1738225650285,4.80135883,239.49,239.42,12.56625716]
[1738225655888,30.15390569,239.48,239.42,0.063]
[1738225656879,30.77976452,239.48,239.42,0.063]
[1738225658609,12.56625716,239.46,239.42,0.063]
[1738225658890,13.41184853,239.44,239.42,0.063]
[1738225659802,16.74205716,239.48,239.42,0.063]
[1738225660600,17.36761599,239.5,239.42,12.62925716]
[1738225660777,4.80135883,239.5,239.44,12.56625716]
[1738225660978,4.1751,239.51,239.44,12.56625716]
[1738225661174,12.56625716,239.52,239.42,1.6094]
[1738225661175,16.741057,239.53,239.46,12.56625716]
[1738225661589,13.41184853,239.52,239.46,12.56625716]
[1738225662201,17.58664853,239.53,239.46,12.56625716]
[1738225663517,0.03,239.54,239.48,12.56625716]
[1738225663693,13.44184853,239.54,239.48,12.56625716]
[1738225664092,17.61654853,239.54,239.48,12.56625716]
[1738225664398,0.62585883,239.53,239.46,12.56625716]
[1738225665811,4.1748,239.53,239.46,12.56625716]
[1738225670517,4.1748,239.53,239.45,8.03732368]
[1738225672823,13.41184853,239.51,239.45,8.03732368]
[1738225675797,13.41184853,239.51,239.43,8.03732368]
[1738225675798,13.41184853,239.49,239.43,8.03732368]
[1738225676501,17.58744853,239.49,239.43,8.03732368]
[1738225679008,17.58744853,239.49,239.43,8.10032368]
[1738225680729,13.41184853,239.47,239.43,0.063]
[1738225683124,4.1759,239.47,239.43,0.063]
[1738225683334,6.57616004,239.6,239.45,8.03732368]
[1738225683335,4.1752,239.51,239.45,8.03732368]
[1738225683508,4.2046,239.54,239.49,8.03732368]
[1738225684220,13.41184853,239.5,239.43,8.10032368]
[1738225685827,13.41184853,239.5,239.45,8.03732368]
[1738225689108,0.03,239.54,239.47,8.03732368]
[1738225689435,0.65585883,239.54,239.47,8.03732368]
[1738225689921,4.1748,239.53,239.47,8.03732368]
[1738225690127,13.41184853,239.52,239.47,8.03732368]
[1738225690530,4.80065883,239.53,239.47,8.03732368]
[1738225690831,13.41184853,239.52,239.45,8.03732368]
[1738225691011,13.41184853,239.52,239.47,8.03732368]
[1738225691544,14.03770736,239.52,239.45,8.03732368]
[1738225691835,13.41184853,239.52,239.45,8.03732368]
[1738225692035,13.41184853,239.52,239.47,8.03732368]
[1738225692233,17.58684853,239.52,239.47,8.03732368]
[1738225692537,17.58684853,239.52,239.45,8.03732368]
[1738225696938,0.62585883,239.53,239.45,8.03732368]
[1738225697441,13.41184853,239.52,239.47,8.03732368]
[1738225699934,0.03,239.54,239.51,8.03732368]
[1738225700735,0.03,239.54,239.53,8.03732368]
[1738225701130,0.03,239.54,239.53,10.29519001]
[1738225701511,0.03,239.54,239.53,10.79715001]
[1738225702145,0.03,239.54,239.53,322.79715001]
[1738225702316,0.03,239.54,239.53,322.17108368]
[1738225703622,0.03,239.54,239.53,313.6318]
[1738225703817,0.03,239.54,239.53,1.6318]
[1738225705844,0.03,239.54,239.52,8.03732368]
[1738225706644,0.03,239.54,239.5,32.55119066]
[1738225707231,0.03,239.54,239.48,12.55119066]
[1738225707535,12.58119066,239.54,239.48,12.55119066]
[1738225707720,12.58119066,239.54,239.46,12.55119066]
[1738225708546,14.03770736,239.53,239.46,12.55119066]
[1738225709645,13.41184853,239.53,239.46,12.55119066]
[1738225713140,0.65585883,239.54,239.48,12.55119066]
[1738225713355,0.03,239.54,239.48,12.55119066]
[1738225723854,12.58119066,239.54,239.46,12.61419066]
[1738225724033,16.75589066,239.54,239.46,12.61419066]
[1738225724352,13.41184853,239.53,239.46,12.61419066]
[1738225724556,12.55119066,239.52,239.46,0.063]
[1738225725767,12.55119066,239.5,239.46,0.063]
[1738225726063,13.41184853,239.47,239.46,0.063]
[1738225726265,14.03770736,239.47,239.46,0.063]
[1738225727766,18.21350736,239.47,239.46,0.063]
[1738225728564,26.75720174,239.47,239.46,0.063]
[1738225733164,26.25524174,239.47,239.46,0.063]
[1738225736469,26.75720174,239.47,239.46,0.063]
[1738225737453,26.25524174,239.47,239.46,0.063]
[1738225738281,18.09020853,239.44,239.43,0.063]
[1738225738464,18.71606736,239.44,239.43,0.063]
[1738225740554,18.21410736,239.44,239.43,0.063]
[1738225741465,18.71606736,239.44,239.43,0.063]
[1738225748089,13.91380853,239.43,239.42,0.0001]
[1738225748281,21.95554291,239.43,239.42,0.0001]
[1738225748976,26.13204291,239.43,239.42,0.0001]
[1738225749676,27.80462491,239.43,239.42,0.0001]
[1738225754686,20.50196,239.4,239.39,0.0001]
[1738225754862,75.74833926,239.4,239.39,0.0001]
[1738225755389,42.58140174,239.4,239.39,0.0001]
[1738225756671,46.75850174,239.4,239.39,0.0001]
[1738225757666,78.92543926,239.4,239.39,0.0001]
[1738225760982,79.92543926,239.4,239.39,0.0001]
[1738225766086,78.92543926,239.4,239.39,0.0001]
[1738225766288,46.75850174,239.4,239.39,0.0001]
[1738225767889,0.50196,239.36,239.25,1.5212]
[1738225768096,21.95554291,239.31,239.25,1.5212]
[1738225768587,21.45358291,239.31,239.25,1.5212]
[1738225770191,13.41184853,239.31,239.25,1.5212]
[1738225770515,13.41184853,239.31,239.26,8.04173438]
[1738225771092,13.41184853,239.32,239.26,8.04173438]
[1738225773900,0.62585883,239.37,239.3,8.10473438]
[1738225774195,13.41184853,239.36,239.3,8.10473438]
[1738225774977,13.44184853,239.36,239.3,8.10473438]
[1738225778885,0.03,239.36,239.3,8.10473438]
[1738225779289,0.03,239.36,239.32,8.04173438]
[1738225779498,0.03,239.36,239.33,1.5908]
[1738225782493,0.03,239.36,239.34,8.04173438]
[1738225790495,14.61789442,239.58,239.44,20.0]
[1738225790696,8.04173438,239.56,239.45,8.04173438]
[1738225790902,8.07173438,239.54,239.45,8.04173438]
[1738225792700,13.41184853,239.53,239.45,8.04173438]
[1738225795413,8.07173438,239.54,239.45,8.04173438]
[1738225795714,0.03,239.54,239.45,9.61303438]
[1738225800020,8.04173438,239.51,239.45,1.5713]
[1738225801098,8.04173438,239.51,239.45,21.5713]
[1738225802209,8.04173438,239.53,239.45,9.61303438]
[1738225804722,21.45358291,239.53,239.45,9.61303438]
[1738225805715,8.04173438,239.51,239.43,8.04173438]
[1738225805920,8.04173438,239.48,239.39,9.64363438]
[1738225807194,12.21753438,239.48,239.39,9.64363438]
[1738225809422,8.04173438,239.48,239.39,9.64363438]
[1738225810022,8.04173438,239.48,239.41,8.04173438]
[1738225810538,8.07173438,239.54,239.45,8.04173438]
[1738225810909,13.41184853,239.53,239.45,8.04173438]
[1738225812909,0.03,239.54,239.45,8.04173438]
[1738225813631,0.03,239.54,239.45,8.66795718]
[1738225814709,0.03,239.54,239.45,8.04173438]
[1738225816523,8.04173438,239.5,239.4,8.04173438]
[1738225816738,8.04173438,239.48,239.4,8.04173438]
[1738225816902,8.04173438,239.44,239.36,8.04173438]
[1738225817731,8.07173438,239.46,239.38,8.04173438]
[1738225818608,0.03,239.46,239.38,8.04173438]
[1738225818922,0.03,239.46,239.42,8.04173438]
[1738225819228,0.03,239.46,239.44,8.04173438]
[1738225819436,0.03,239.46,239.45,0.62624837]
[1738225819906,0.03,239.46,239.44,8.04173438]
[1738225820638,0.03,239.46,239.42,8.04173438]
[1738225821313,0.03,239.46,239.34,148.79400212]
[1738225821314,8.07173438,239.46,239.38,8.04173438]
[1738225821509,8.04173438,239.44,239.36,8.04173438]
[1738225821708,8.04173438,239.42,239.34,9.76583438]
[1738225821909,8.04173438,239.42,239.34,8.10473438]
[1738225822928,12.21843438,239.42,239.34,8.10473438]
[1738225823636,13.41184853,239.41,239.34,8.10473438]
[1738225823831,8.04173438,239.38,239.34,0.063]
[1738225824505,14.03770736,239.4,239.34,0.063]
[1738225824705,12.57474366,239.4,239.34,0.063]
[1738225827634,13.41184853,239.39,239.34,0.063]
[1738225829232,4.1772,239.39,239.34,0.063]
[1738225829739,13.41184853,239.38,239.34,0.063]
[1738225830036,25.98659219,239.38,239.34,0.063]
[1738225830734,26.61245102,239.38,239.34,0.063]
[1738225831230,4.1776,239.37,239.34,0.063]
[1738225832729,30.16399219,239.38,239.34,0.063]
[1738225834946,13.41184853,239.36,239.34,0.063]
[1738225835947,13.41184853,239.37,239.34,0.063]
[1738225837540,17.58944853,239.37,239.34,0.063]
[1738225848827,8.04792215,239.36,239.34,0.063]
[1738225851823,13.41184853,239.35,239.34,0.063]
[1738225856852,8.07792215,239.38,239.34,0.063]
[1738225857056,0.03,239.38,239.34,0.063]
[1738225857353,0.03,239.38,239.35,8.04792215]
[1738225858051,0.03,239.37,239.35,8.04792215]
[1738225861164,0.03,239.37,239.34,0.063]
[1738225867170,13.44184853,239.37,239.34,0.063]
[1738225867465,17.58974853,239.35,239.34,0.063]
[1738225869172,18.09170853,239.35,239.34,0.063]
[1738225870269,13.41184853,239.35,239.34,0.063]
[1738225870581,4.2077,239.37,239.34,0.063]
[1738225870876,17.61954853,239.37,239.34,0.063]
[1738225872581,13.41184853,239.35,239.34,0.063]
[1738225873759,17.58974853,239.35,239.34,0.063]
[1738225873964,13.41184853,239.35,239.34,0.063]
[1738225874673,17.58974853,239.35,239.34,0.063]
[1738225876046,18.09170853,239.35,239.34,0.063]
[1738225880055,13.41184853,239.35,239.34,0.063]
[1738225880978,0.03,239.37,239.34,0.063]
[1738225881575,0.03,239.36,239.34,0.063]
[1738225885482,0.03,239.36,239.35,8.04792215]
[1738225886473,0.03,239.36,239.34,0.063]
[1738225887980,0.03,239.36,239.35,8.04792215]
[1738225893165,0.03,239.36,239.34,0.063]
[1738225893675,0.03,239.36,239.35,8.04792215]
[1738225895082,0.03,239.36,239.35,11.07738215]
[1738225895288,0.03,239.38,239.37,20.50196]
[1738225895586,0.03,239.38,239.37,29.17626208]
[1738225896880,0.03,239.38,239.37,28.04792215]
[1738225897183,0.03,239.38,239.37,28.67435247]
[1738225897786,0.03,239.38,239.37,29.17631247]
[1738225897985,0.03,239.38,239.37,342.17631247]
[1738225898291,0.03,239.46,239.38,1.50196]
[1738225898463,0.03,239.46,239.45,8.04792215]
[1738225902972,0.03,239.46,239.45,8.67421556]
[1738225903680,0.03,239.54,239.45,9.17617556]
[1738225903875,0.03,239.54,239.52,8.04792215]
[1738225906670,0.03,239.54,239.53,2.17546948]
[1738225907070,0.03,239.54,239.53,2.67742948]
[1738225910093,0.03,239.54,239.53,328.08927801]
[1738225910396,0.03,239.54,239.53,327.46320853]
[1738225910777,0.03,239.54,239.53,15.46320853]
[1738225910971,0.03,239.6,239.56,20.50196]
[1738225911287,0.03,239.6,239.59,8.04792215]
[1738225915092,0.03,239.6,239.57,8.04792215]
[1738225917402,0.03,239.6,239.54,8.04792215]
[1738225917593,8.07792215,239.6,239.52,8.04792215]
[1738225918605,0.03,239.6,239.54,8.04792215]
[1738225920402,8.07792215,239.6,239.52,8.04792215]
[1738225921308,13.41184853,239.59,239.52,8.04792215]
[1738225921512,8.04792215,239.58,239.5,8.04792215]
[1738225922209,0.62585883,239.59,239.46,8.04792215]
[1738225922210,8.04792215,239.54,239.46,8.04792215]
[1738225922796,8.04792215,239.52,239.44,8.04792215]
[1738225922991,8.04792215,239.5,239.42,8.04792215]
[1738225923194,8.04792215,239.52,239.44,8.04792215]
[1738225923408,8.04792215,239.54,239.46,8.04792215]
[1738225924007,13.41184853,239.53,239.46,8.04792215]
[1738225924207,13.41184853,239.49,239.42,8.04792215]
[1738225924896,8.04792215,239.48,239.4,8.04792215]
[1738225925091,13.41184853,239.49,239.42,8.04792215]
[1738225925705,8.04792215,239.5,239.42,8.04792215]
[1738225926022,8.04792215,239.52,239.44,8.04792215]
[1738225926712,13.41184853,239.51,239.44,8.04792215]
[1738225927611,4.1753,239.5,239.44,8.04792215]
[1738225927814,13.41184853,239.49,239.44,8.04792215]
[1738225928020,14.03770736,239.49,239.42,8.11092215]
[1738225929021,13.41184853,239.47,239.42,8.11092215]
[1738225930122,21.45977068,239.47,239.42,0.063]
[1738225930303,22.08562951,239.47,239.42,0.063]
[1738225931210,4.176,239.46,239.42,0.063]
[1738225932828,8.04792215,239.43,239.42,0.063]
[1738225933203,21.45977068,239.43,239.42,0.063]
[1738225933416,25.63627068,239.43,239.42,0.063]
[1738225936101,17.58834853,239.43,239.42,0.063]
[1738225936299,13.41184853,239.43,239.42,0.063]
[1738225936499,1.5417,239.46,239.42,8.11092215]
[1738225937104,1.5417,239.46,239.42,0.063]
[1738225940209,5.7177,239.46,239.42,0.063]
[1738225941508,4.176,239.46,239.42,0.063]
[1738225943632,8.04792215,239.51,239.44,8.04792215]
[1738225943820,8.67378098,239.53,239.44,8.04792215]
[1738225944022,13.41184853,239.52,239.44,8.04792215]
[1738225944936,17.58684853,239.52,239.44,8.04792215]
[1738225945117,8.04792215,239.47,239.42,0.063]
[1738225945643,0.62585883,239.56,239.46,8.04792215]
[1738225945814,4.1744,239.55,239.48,8.04792215]
[1738225946009,13.41184853,239.54,239.46,8.04792215]
[1738225947130,16.02232215,239.57,239.48,8.04792215]
[1738225947341,4.1744,239.56,239.48,8.04792215]
[1738225947714,0.62585883,239.59,239.5,8.04792215]
[1738225947715,13.41184853,239.58,239.5,8.04792215]
[1738225948023,0.03,239.6,239.54,8.04792215]
[1738225948818,4.2036,239.6,239.52,8.04792215]
[1738225949316,0.03,239.6,239.52,8.04792215]
[1738225950209,0.03,239.6,239.56,8.04792215]
[1738225950413,0.03,239.6,239.54,8.04792215]
[1738225950911,8.04792215,239.59,239.52,8.04792215]
[1738225951124,13.41184853,239.58,239.5,8.04792215]
[1738225951336,4.1741,239.57,239.5,8.04792215]
[1738225951845,0.03,239.54,239.5,28.04792215]
[1738225952413,0.03,239.54,239.48,8.04792215]
[1738225952642,13.44184853,239.54,239.46,8.04792215]
[1738225952813,13.41184853,239.52,239.44,8.04792215]
[1738225953235,8.04792215,239.51,239.42,8.11092215]
[1738225953415,8.04792215,239.51,239.42,0.063]
[1738225953621,0.03,239.54,239.42,0.063]
[1738225953622,8.04792215,239.53,239.44,8.04792215]
[1738225954328,8.04792215,239.53,239.46,8.04792215]
[1738225954534,0.03,239.54,239.46,8.04792215]
[1738225954740,4.2046,239.54,239.46,8.04792215]